fUSD/lending_fUSD_20260530
["ID","MTS","AMOUNT","RATE_DAILY","PERIOD"]
[423484628,1780155243000,-165.38732461,0.00038356,2]
[423484629,1780155243000,-351.20992606,0.00038356,60]
[423484631,1780155243000,-595.44238614,0.00038356,2]
[423484635,1780155243000,-300.0,0.00038356,2]
[423484639,1780155243000,-300.0,0.00038356,2]
[423484641,1780155243000,-300.0,0.00038356,2]
[423484643,1780155243000,-300.0,0.00038356,2]
[423484648,1780155243000,-150.0,0.00038356,2]
[423484640,1780155243000,-300.0,0.00038356,2]
[423484644,1780155243000,-300.0,0.00038356,2]
[423484650,1780155243000,-150.0,0.00038356,2]
[423484645,1780155243000,-300.0,0.00038356,2]
[423484636,1780155243000,-300.0,0.00038356,2]
[423484676,1780155243000,-4054.8,0.00038507,51]
[423484677,1780155243000,-307.658,0.00038507,51]
[423484679,1780155243000,-157.99773033,0.00038545,2]
[423484720,1780155243000,-2971.147594,0.0003863,30]
[423484721,1780155243000,-2971.147594,0.0003863,30]
[423484711,1780155243000,-151.25,0.00038602,120]
[423484713,1780155243000,-2971.147594,0.0003863,30]
[423484709,1780155243000,-150.0,0.00038597,7]
[423484712,1780155243000,-2971.147594,0.0003863,30]
[423484716,1780155243000,-2971.147594,0.0003863,30]
[423484715,1780155243000,-2971.147594,0.0003863,30]
[423484719,1780155243000,-2971.147594,0.0003863,30]
[423484714,1780155243000,-2971.147594,0.0003863,30]
[423484718,1780155243000,-2971.147594,0.0003863,30]
[423484723,1780155243000,-2971.147594,0.0003863,30]
[423484710,1780155243000,-150.0,0.00038597,7]
[423484733,1780155243000,-150.0,0.00038632,10]
[423484725,1780155243000,-2971.147594,0.0003863,30]
[423484722,1780155243000,-2971.147594,0.0003863,30]
[423484726,1780155243000,-2971.147594,0.0003863,30]
[423484727,1780155243000,-2971.147594,0.0003863,30]
[423484730,1780155243000,-2971.147594,0.0003863,30]
[423484728,1780155243000,-2971.147594,0.0003863,30]
[423484734,1780155243000,-150.0,0.00038632,10]
[423484729,1780155243000,-2971.147594,0.0003863,30]
[423484732,1780155243000,-150.0,0.00038632,10]
[423484731,1780155243000,-2971.147604,0.0003863,30]
[423484735,1780155243000,-150.0,0.00038632,10]
[423484678,1780155243000,-151.0,0.00038538,120]
[423484724,1780155243000,-2971.147594,0.0003863,30]
[423484707,1780155243000,-150.0,0.00038597,7]
[423484717,1780155243000,-2971.147594,0.0003863,30]
[423484705,1780155243000,-298.54018974,0.00038597,7]
[423484704,1780155243000,-150.0,0.00038597,7]
[423484682,1780155243000,-250.0,0.00038566,2]
[423484683,1780155243000,-250.0,0.00038566,2]
[423484680,1780155243000,-250.0,0.00038566,2]
[423484684,1780155243000,-5000.0,0.00038566,2]
[423484686,1780155243000,-5000.0,0.00038566,2]
[423484685,1780155243000,-5000.0,0.00038566,2]
[423484691,1780155243000,-150.0,0.00038597,7]
[423484693,1780155243000,-150.0,0.00038597,7]
[423484694,1780155243000,-150.0,0.00038597,7]
[423484687,1780155243000,-5000.0,0.00038566,2]
[423484690,1780155243000,-150.0,0.00038597,7]
[423484688,1780155243000,-180.23,0.00038571,30]
[423484681,1780155243000,-250.0,0.00038566,2]
[423484696,1780155243000,-150.0,0.00038597,7]
[423484689,1780155243000,-368.31,0.00038571,30]
[423484699,1780155243000,-150.0,0.00038597,7]
[423484701,1780155243000,-150.0,0.00038597,7]
[423484708,1780155243000,-150.0,0.00038597,7]
[423484700,1780155243000,-150.0,0.00038597,7]
[423484697,1780155243000,-150.0,0.00038597,7]
[423484706,1780155243000,-150.0,0.00038597,7]
[423484702,1780155243000,-150.0,0.00038597,7]
[423484698,1780155243000,-150.0,0.00038597,7]
[423484692,1780155243000,-150.0,0.00038597,7]
[423484695,1780155243000,-150.0,0.00038597,7]
[423484703,1780155243000,-150.0,0.00038597,7]
[423484777,1780155244000,-500.0,0.00038795,2]
[423484773,1780155244000,-2997.4,0.00038791,120]
[423484775,1780155244000,-2997.4,0.00038791,120]
[423484765,1780155244000,-2997.4,0.00038791,120]
[423484776,1780155244000,-2997.4,0.00038791,120]
[423484770,1780155244000,-2997.4,0.00038791,120]
[423484771,1780155244000,-2997.4,0.00038791,120]
[423484768,1780155244000,-2997.4,0.00038791,120]
[423484769,1780155244000,-2997.4,0.00038791,120]
[423484774,1780155244000,-2997.4,0.00038791,120]
[423484772,1780155244000,-2997.4,0.00038791,120]
[423484778,1780155244000,-500.0,0.00038795,2]
[423484783,1780155244000,-500.0,0.00038795,2]
[423484787,1780155244000,-500.0,0.00038795,2]
[423484782,1780155244000,-500.0,0.00038795,2]
[423484789,1780155244000,-500.0,0.00038795,2]
[423484780,1780155244000,-500.0,0.00038795,2]
[423484791,1780155244000,-500.0,0.00038795,2]
[423484790,1780155244000,-500.0,0.00038795,2]
[423484788,1780155244000,-500.0,0.00038795,2]
[423484792,1780155244000,-500.0,0.00038795,2]
[423484781,1780155244000,-500.0,0.00038795,2]
[423484784,1780155244000,-500.0,0.00038795,2]
[423484785,1780155244000,-500.0,0.00038795,2]
[423484764,1780155244000,-2997.4,0.00038791,120]
[423484779,1780155244000,-500.0,0.00038795,2]
[423484767,1780155244000,-2997.4,0.00038791,120]
[423484736,1780155244000,-150.0,0.00038632,10]
[423484766,1780155244000,-2997.4,0.00038791,120]
[423484737,1780155244000,-150.0,0.00038632,10]
[423484738,1780155244000,-150.0,0.00038632,10]
[423484740,1780155244000,-150.0,0.00038632,10]
[423484739,1780155244000,-150.0,0.00038632,10]
[423484741,1780155244000,-150.0,0.00038632,10]
[423484743,1780155244000,-150.0,0.00038632,10]
[423484742,1780155244000,-150.0,0.00038632,10]
[423484745,1780155244000,-150.0,0.00038632,10]
[423484744,1780155244000,-150.0,0.00038632,10]
[423484746,1780155244000,-150.0,0.00038632,10]
[423484748,1780155244000,-150.0,0.00038632,10]
[423484747,1780155244000,-150.0,0.00038632,10]
[423484763,1780155244000,-2997.4,0.00038791,120]
[423484749,1780155244000,-150.0,0.00038632,10]
[423484754,1780155244000,-212.54052938,0.00038678,30]
[423484756,1780155244000,-1865.28,0.000387,120]
[423484752,1780155244000,-900.0,0.00038678,7]
[423484753,1780155244000,-1000.0,0.00038678,120]
[423484751,1780155244000,-350.0,0.00038671,53]
[423484755,1780155244000,-312.77,0.000387,120]
[423484757,1780155244000,-2107.23,0.000387,120]
[423484761,1780155244000,-2997.4,0.00038791,120]
[423484759,1780155244000,-150.0,0.00038724,2]
[423484758,1780155244000,-151.25,0.00038702,120]
[423484760,1780155244000,-350.0,0.00038767,5]
[423484762,1780155244000,-2997.4,0.00038791,120]
[423484750,1780155244000,-222.0,0.00038632,10]
[423484802,1780155244000,-500.0,0.00038795,2]
[423484786,1780155244000,-500.0,0.00038795,2]
[423484793,1780155244000,-500.0,0.00038795,2]
[423484822,1780155244000,-157.99773033,0.00038819,2]
[423484827,1780155244000,-66032.80100117,0.000389,7]
[423484829,1780155244000,-410507.87964119,0.000389,2]
[423484828,1780155244000,-82498.889529,0.000389,30]
[423484830,1780155244000,-15925.42204814,0.000389,2]
[423484838,1780155244000,-286.595176,0.000389,2]
[423484832,1780155244000,-706.3,0.000389,120]
[423484834,1780155244000,-289.595176,0.000389,2]
[423484833,1780155244000,-310.59518,0.000389,2]
[423484836,1780155244000,-292.595176,0.000389,2]
[423484835,1780155244000,-286.595176,0.000389,2]
[423484831,1780155244000,-712.10212873,0.000389,14]
[423484824,1780155244000,-300.0650067,0.00038849,120]
[423484837,1780155244000,-289.595176,0.000389,2]
[423484841,1780155244000,-300.0,0.00038904,120]
[423484840,1780155244000,-151.25,0.00038902,120]
[423484842,1780155244000,-300.0,0.00038904,120]
[423484846,1780155244000,-300.0,0.00038904,120]
[423484848,1780155244000,-300.0,0.00038904,120]
[423484843,1780155244000,-300.0,0.00038904,120]
[423484850,1780155244000,-300.0,0.00038904,120]
[423484845,1780155244000,-300.0,0.00038904,120]
[423484847,1780155244000,-300.0,0.00038904,120]
[423484844,1780155244000,-300.0,0.00038904,120]
[423484851,1780155244000,-300.0,0.00038904,120]
[423484849,1780155244000,-300.0,0.00038904,120]
[423484839,1780155244000,-10000.0,0.000389,30]
[423484825,1780155244000,-2110.0,0.00038879,2]
[423484803,1780155244000,-500.0,0.00038795,2]
[423484823,1780155244000,-12702.4749798,0.00038834,2]
[423484820,1780155244000,-151.25,0.00038802,120]
[423484794,1780155244000,-500.0,0.00038795,2]
[423484800,1780155244000,-500.0,0.00038795,2]
[423484795,1780155244000,-500.0,0.00038795,2]
[423484799,1780155244000,-500.0,0.00038795,2]
[423484797,1780155244000,-500.0,0.00038795,2]
[423484798,1780155244000,-500.0,0.00038795,2]
[423484796,1780155244000,-500.0,0.00038795,2]
[423484805,1780155244000,-500.0,0.00038795,2]
[423484810,1780155244000,-618.5,0.00038795,2]
[423484804,1780155244000,-500.0,0.00038795,2]
[423484807,1780155244000,-500.0,0.00038795,2]
[423484806,1780155244000,-500.0,0.00038795,2]
[423484801,1780155244000,-500.0,0.00038795,2]
[423484808,1780155244000,-500.0,0.00038795,2]
[423484809,1780155244000,-500.0,0.00038795,2]
[423484816,1780155244000,-338.361039,0.000388,2]
[423484818,1780155244000,-341.361039,0.000388,2]
[423484826,1780155244000,-464.25950414,0.00038886,90]
[423484819,1780155244000,-70143.0,0.000388,30]
[423484817,1780155244000,-335.361039,0.000388,2]
[423484813,1780155244000,-3746.12303771,0.000388,120]
[423484821,1780155244000,-1000.0,0.00038814,120]
[423484811,1780155244000,-1001.0,0.00038795,7]
[423484814,1780155244000,-9653.00694044,0.000388,15]
[423484812,1780155244000,-2014.80121903,0.000388,10]
[423484815,1780155244000,-350.361039,0.000388,2]
[423484890,1780155245000,-300.0,0.00038904,120]
[423484895,1780155245000,-300.0,0.00038904,120]
[423484888,1780155245000,-300.0,0.00038904,120]
[423484889,1780155245000,-300.0,0.00038904,120]
[423484881,1780155245000,-300.0,0.00038904,120]
[423484884,1780155245000,-300.0,0.00038904,120]
[423484886,1780155245000,-300.0,0.00038904,120]
[423484885,1780155245000,-300.0,0.00038904,120]
[423484883,1780155245000,-300.0,0.00038904,120]
[423484893,1780155245000,-300.0,0.00038904,120]
[423484887,1780155245000,-300.0,0.00038904,120]
[423484896,1780155245000,-300.0,0.00038904,120]
[423484904,1780155245000,-300.0,0.00038904,120]
[423484898,1780155245000,-300.0,0.00038904,120]
[423484897,1780155245000,-300.0,0.00038904,120]
[423484894,1780155245000,-300.0,0.00038904,120]
[423484900,1780155245000,-300.0,0.00038904,120]
[423484910,1780155245000,-300.0,0.00038904,120]
[423484902,1780155245000,-300.0,0.00038904,120]
[423484901,1780155245000,-300.0,0.00038904,120]
[423484899,1780155245000,-300.0,0.00038904,120]
[423484905,1780155245000,-300.0,0.00038904,120]
[423484906,1780155245000,-300.0,0.00038904,120]
[423484903,1780155245000,-300.0,0.00038904,120]
[423484882,1780155245000,-300.0,0.00038904,120]
[423484892,1780155245000,-300.0,0.00038904,120]
[423484880,1780155245000,-300.0,0.00038904,120]
[423484866,1780155245000,-300.0,0.00038904,120]
[423484878,1780155245000,-300.0,0.00038904,120]
[423484907,1780155245000,-300.0,0.00038904,120]
[423484852,1780155245000,-300.0,0.00038904,120]
[423484855,1780155245000,-300.0,0.00038904,120]
[423484854,1780155245000,-300.0,0.00038904,120]
[423484856,1780155245000,-300.0,0.00038904,120]
[423484859,1780155245000,-300.0,0.00038904,120]
[423484862,1780155245000,-300.0,0.00038904,120]
[423484858,1780155245000,-300.0,0.00038904,120]
[423484860,1780155245000,-300.0,0.00038904,120]
[423484861,1780155245000,-300.0,0.00038904,120]
[423484857,1780155245000,-300.0,0.00038904,120]
[423484853,1780155245000,-300.0,0.00038904,120]
[423484879,1780155245000,-300.0,0.00038904,120]
[423484863,1780155245000,-300.0,0.00038904,120]
[423484865,1780155245000,-300.0,0.00038904,120]
[423484869,1780155245000,-300.0,0.00038904,120]
[423484868,1780155245000,-300.0,0.00038904,120]
[423484867,1780155245000,-300.0,0.00038904,120]
[423484871,1780155245000,-300.0,0.00038904,120]
[423484873,1780155245000,-300.0,0.00038904,120]
[423484864,1780155245000,-300.0,0.00038904,120]
[423484874,1780155245000,-300.0,0.00038904,120]
[423484870,1780155245000,-300.0,0.00038904,120]
[423484872,1780155245000,-300.0,0.00038904,120]
[423484877,1780155245000,-300.0,0.00038904,120]
[423484876,1780155245000,-300.0,0.00038904,120]
[423484875,1780155245000,-300.0,0.00038904,120]
[423484908,1780155245000,-300.0,0.00038904,120]
[423484891,1780155245000,-300.0,0.00038904,120]
[423484911,1780155245000,-300.0,0.00038904,120]
[423484939,1780155245000,-175.63,0.00039,5]
[423484943,1780155245000,-29735.93776455,0.00039,2]
[423484941,1780155245000,-31361.96517965,0.00039,2]
[423484940,1780155245000,-3297.59881327,0.00039,2]
[423484946,1780155245000,-500.0,0.00039,11]
[423484945,1780155245000,-2600.0,0.00039,2]
[423484948,1780155245000,-484.15,0.00039,11]
[423484947,1780155245000,-500.0,0.00039,11]
[423484950,1780155245000,-5000.0,0.00039,7]
[423484949,1780155245000,-3203.1,0.00039,2]
[423484952,1780155245000,-5000.0,0.00039,7]
[423484951,1780155245000,-5000.0,0.00039,7]
[423484938,1780155245000,-31309.0,0.00039,7]
[423484955,1780155245000,-5000.0,0.00039,7]
[423484956,1780155245000,-5000.0,0.00039,7]
[423484958,1780155245000,-10381.18550665,0.00039,9]
[423484959,1780155245000,-1000.0,0.00039,15]
[423484961,1780155245000,-250.0,0.00039,120]
[423484967,1780155245000,-1010.57755974,0.00039,30]
[423484957,1780155245000,-4867.0,0.00039,7]
[423484960,1780155245000,-10729.30004709,0.00039,7]
[423484962,1780155245000,-1000.0,0.00039,120]
[423484964,1780155245000,-1000.0,0.00039,120]
[423484965,1780155245000,-1000.0,0.00039,120]
[423484966,1780155245000,-1000.0,0.00039,120]
[423484909,1780155245000,-300.0,0.00038904,120]
[423484954,1780155245000,-5000.0,0.00039,7]
[423484942,1780155245000,-9893.98239742,0.00039,5]
[423484953,1780155245000,-5000.0,0.00039,7]
[423484933,1780155245000,-5000.0,0.00038964,2]
[423484913,1780155245000,-1107.01,0.0003892,116]
[423484918,1780155245000,-10000.0,0.0003895,2]
[423484915,1780155245000,-1478.44957008,0.00038934,2]
[423484936,1780155245000,-5188.90131243,0.0003899,30]
[423484912,1780155245000,-264.187121,0.00038904,120]
[423484914,1780155245000,-1580.94638451,0.00038931,2]
[423484917,1780155245000,-2000.0,0.0003895,2]
[423484916,1780155245000,-1500.48315512,0.00038945,7]
[423484921,1780155245000,-1229.0,0.0003895,16]
[423484919,1780155245000,-2000.0,0.0003895,2]
[423484922,1780155245000,-2662.68344861,0.00038964,2]
[423484925,1780155245000,-1450.544248,0.00038964,2]
[423484926,1780155245000,-2737.75304342,0.00038964,2]
[423484920,1780155245000,-10000.0,0.0003895,2]
[423484924,1780155245000,-2404.7545062,0.00038964,2]
[423484923,1780155245000,-1716.11145023,0.00038964,2]
[423484944,1780155245000,-1252.0,0.00039,7]
[423484935,1780155245000,-12336.10977812,0.00038975,120]
[423484934,1780155245000,-3222.23285505,0.00038967,2]
[423484927,1780155245000,-2874.55903243,0.00038964,2]
[423484930,1780155245000,-250.0,0.00038964,2]
[423484937,1780155245000,-250.0,0.00039,7]
[423484929,1780155245000,-250.0,0.00038964,2]
[423484963,1780155245000,-1000.0,0.00039,120]
[423484932,1780155245000,-5000.0,0.00038964,2]
[423484928,1780155245000,-250.0,0.00038964,2]
[423484931,1780155245000,-5000.0,0.00038964,2]
[423484990,1780155246000,-2784.5719908,0.00039115,120]
[423484979,1780155246000,-157.99773033,0.00039093,2]
[423484992,1780155246000,-751.58767855,0.0003917,2]
[423484985,1780155246000,-269.084601,0.000391,2]
[423484984,1780155246000,-2000.0,0.000391,120]
[423484982,1780155246000,-1484.0,0.000391,7]
[423484983,1780155246000,-2000.0,0.000391,120]
[423484981,1780155246000,-2580000.0,0.000391,7]
[423484975,1780155246000,-1111.0,0.00039,7]
[423484972,1780155246000,-162.0,0.00039,120]
[423484976,1780155246000,-151.25,0.00039002,120]
[423484973,1780155246000,-97018.05413058,0.00039,120]
[423484978,1780155246000,-370.8316652,0.00039073,120]
[423484974,1780155246000,-192743.0,0.00039,7]
[423484971,1780155246000,-130000.0,0.00039,7]
[423484969,1780155246000,-30000.0,0.00039,7]
[423484970,1780155246000,-500000.0,0.00039,7]
[423484980,1780155246000,-925.6,0.00039094,30]
[423484968,1780155246000,-440000.0,0.00039,7]
[423484989,1780155246000,-151.25,0.00039102,120]
[423484977,1780155246000,-7193.23,0.00039033,2]
[423484987,1780155246000,-254.084601,0.000391,2]
[423484986,1780155246000,-257.084601,0.000391,2]
[423484993,1780155246000,-268.8,0.00039183,30]
[423484991,1780155246000,-302.19347334,0.00039156,14]
[423485011,1780155246000,-5000000.0,0.000393,120]
[423485012,1780155246000,-1359846.83306033,0.000393,120]
[423485007,1780155246000,-1506.6385,0.000393,60]
[423485010,1780155246000,-1000.0,0.000393,120]
[423485009,1780155246000,-1305.9568,0.000393,60]
[423485006,1780155246000,-2320.49,0.000393,120]
[423485002,1780155246000,-590.118,0.00039267,2]
[423485001,1780155246000,-603.01,0.00039262,120]
[423485004,1780155246000,-236.0,0.000393,120]
[423485008,1780155246000,-2320.49,0.000393,30]
[423485003,1780155246000,-500.0,0.00039299,7]
[423484998,1780155246000,-1341.74,0.00039243,120]
[423484999,1780155246000,-1604.56,0.00039243,120]
[423484997,1780155246000,-27464.23,0.00039243,120]
[423484996,1780155246000,-832.44,0.00039243,120]
[423484994,1780155246000,-213.25,0.000392,45]
[423485005,1780155246000,-2320.49,0.000393,60]
[423484995,1780155246000,-151.25,0.00039202,120]
[423485000,1780155246000,-163.0,0.0003926,120]
[423484988,1780155246000,-150.0,0.00039101,120]
[423485020,1780155248000,-423.32026052,0.000393,120]
[423485018,1780155248000,-9961.97701472,0.000393,120]
[423485019,1780155248000,-623.33,0.00013989,2]
[423485013,1780155248000,-504.04474512,0.000393,120]
[423485014,1780155248000,-316.918357,8.663e-05,2]
[423485015,1780155248000,-623.33,0.00013671,2]
[423485022,1780155248000,-5811.98750001,0.00013916,2]
[423485016,1780155248000,-300.60910854,0.00035452,2]
[423485021,1780155248000,-254.01249999,0.00013916,2]
[423485017,1780155248000,-3424.433915,0.00035616,7]
[423485026,1780155248000,-6066.0,0.00022916,2]
[423485028,1780155248000,-3039.328955,0.00035616,7]
[423485024,1780155248000,-6066.0,0.00016916,2]
[423485027,1780155248000,-6066.0,0.00025916,2]
[423485023,1780155248000,-932.0,0.00015,2]
[423485030,1780155248000,-151.0,0.00035616,7]
[423485029,1780155248000,-993.75355,0.00035616,7]
[423485031,1780155248000,-3424.433915,0.00035616,7]
[423485032,1780155248000,-264.35240602,0.00035616,7]
[423485025,1780155248000,-6066.0,0.00019916,2]
[423485035,1780155250000,135.43684572,9.356e-05,7]
[423485034,1780155250000,104.8415722,9.356e-05,7]
[423485033,1780155250000,160.18561194,8.836e-05,7]
[423485036,1780155261000,1001.0,0.00028,120]
[423485037,1780155292000,1001.0,0.0002727,120]
[423485039,1780155341000,869.32172088,0.00028,120]
[423485197,1780156079000,152.0,9.358e-05,7]
[423485223,1780156233000,-500.0,0.00012329,2]
[423485222,1780156233000,-628.29249326,0.00012329,2]
[423485221,1780156233000,-500.0,0.00012329,2]
[423485220,1780156233000,-500.0,0.00012329,2]
[423485215,1780156233000,-500.0,0.00012329,2]
[423485218,1780156233000,-500.0,0.00012329,2]
[423485219,1780156233000,-439.83370108,0.00012329,2]
[423485216,1780156233000,-500.0,0.00012329,2]
[423485217,1780156233000,-500.0,0.00012329,2]
[423485214,1780156233000,-426.36405104,0.00012329,2]
[423485210,1780156233000,-8.13020746,0.00012329,2]
[423485204,1780156233000,-61.77755911,0.00012181,2]
[423485212,1780156233000,-198.48757416,0.00012329,2]
[423485211,1780156233000,-345.87211901,0.00012329,2]
[423485209,1780156233000,-491.95858944,0.00012329,2]
[423485208,1780156233000,-500.0,0.00012329,2]
[423485206,1780156233000,-223.13192573,0.0001227,2]
[423485224,1780156233000,-500.0,0.00012329,2]
[423485205,1780156233000,-223.13192572,0.00012269,2]
[423485201,1780156233000,-163.56,0.0001,2]
[423485203,1780156233000,-92.70244089,0.00012181,2]
[423485202,1780156233000,-215.58360558,0.00011389,2]
[423485213,1780156233000,-73.63594896,0.00012329,2]
[423485226,1780156233000,-500.0,0.00012329,2]
[423485207,1780156233000,-500.0,0.00012329,2]
[423485227,1780156233000,-500.0,0.00012329,2]
[423485225,1780156233000,-500.0,0.00012329,2]
[423485251,1780156233000,-393.653476,0.00012332,2]
[423485247,1780156233000,-300.0,0.0001233,2]
[423485250,1780156233000,-8926.7595584,0.00012332,2]
[423485249,1780156233000,-500.0,0.00012331,2]
[423485248,1780156233000,-177.0,0.0001233,2]
[423485244,1780156233000,-500.0,0.00012329,2]
[423485245,1780156233000,-500.0,0.00012329,2]
[423485246,1780156233000,-1200.0,0.0001233,2]
[423485241,1780156233000,-500.0,0.00012329,2]
[423485242,1780156233000,-500.0,0.00012329,2]
[423485239,1780156233000,-500.0,0.00012329,2]
[423485243,1780156233000,-500.0,0.00012329,2]
[423485236,1780156233000,-500.0,0.00012329,2]
[423485240,1780156233000,-500.0,0.00012329,2]
[423485229,1780156233000,-500.0,0.00012329,2]
[423485228,1780156233000,-500.0,0.00012329,2]
[423485231,1780156233000,-500.0,0.00012329,2]
[423485232,1780156233000,-500.0,0.00012329,2]
[423485230,1780156233000,-500.0,0.00012329,2]
[423485238,1780156233000,-500.0,0.00012329,2]
[423485233,1780156233000,-500.0,0.00012329,2]
[423485235,1780156233000,-478.83688982,0.00012329,2]
[423485237,1780156233000,-500.0,0.00012329,2]
[423485234,1780156233000,-500.0,0.00012329,2]
[423485325,1780156234000,-2500.0,0.00013599,2]
[423485321,1780156234000,-420.0,0.00013531,2]
[423485323,1780156234000,-3599.40092946,0.00013598,2]
[423485324,1780156234000,-4175.8268,0.00013599,2]
[423485319,1780156234000,-6813.0253,0.00013499,2]
[423485313,1780156234000,-154.48,0.00013464,2]
[423485320,1780156234000,-151.55,0.00013513,2]
[423485318,1780156234000,-30387.9911,0.00013499,2]
[423485316,1780156234000,-500.0,0.00013498,2]
[423485317,1780156234000,-537.2902731,0.00013498,2]
[423485327,1780156234000,-500.0,0.00013698,2]
[423485322,1780156234000,-1680.0,0.00013563,2]
[423485326,1780156234000,-151.55,0.00013661,2]
[423485340,1780156234000,-500.0,0.00013698,2]
[423485328,1780156234000,-500.0,0.00013698,2]
[423485331,1780156234000,-502.31004729,0.00013698,2]
[423485330,1780156234000,-500.0,0.00013698,2]
[423485332,1780156234000,-500.0,0.00013698,2]
[423485333,1780156234000,-500.0,0.00013698,2]
[423485336,1780156234000,-500.0,0.00013698,2]
[423485335,1780156234000,-500.0,0.00013698,2]
[423485339,1780156234000,-500.0,0.00013698,2]
[423485337,1780156234000,-604.98515219,0.00013698,2]
[423485338,1780156234000,-500.0,0.00013698,2]
[423485343,1780156234000,-500.0,0.00013698,2]
[423485315,1780156234000,-254.78383294,0.00013498,2]
[423485329,1780156234000,-500.0,0.00013698,2]
[423485314,1780156234000,-469.46081702,0.00013498,2]
[423485287,1780156234000,-200.0,0.0001291,2]
[423485310,1780156234000,-500.0,0.00013253,2]
[423485252,1780156234000,-500.0,0.00012329,2]
[423485256,1780156234000,-642.20766926,0.00012332,2]
[423485254,1780156234000,-500.0,0.00012329,2]
[423485258,1780156234000,-938.98929634,0.00012332,2]
[423485260,1780156234000,-859.0,0.00012594,2]
[423485262,1780156234000,-294.73,0.00012594,2]
[423485264,1780156234000,-500.0,0.00012605,2]
[423485266,1780156234000,-160.0,0.0001261,2]
[423485279,1780156234000,-701.53173477,0.00012776,2]
[423485270,1780156234000,-151.55,0.00012775,2]
[423485281,1780156234000,-193.2,0.00012814,2]
[423485272,1780156234000,-402.20826523,0.00012776,2]
[423485268,1780156234000,-151.55,0.00012627,2]
[423485277,1780156234000,-500.0,0.00012329,2]
[423485283,1780156234000,-301.49,0.00012818,2]
[423485285,1780156234000,-154.48,0.00012823,2]
[423485342,1780156234000,-500.0,0.00013698,2]
[423485291,1780156234000,-211.9,0.00012932,2]
[423485289,1780156234000,-151.55,0.00012923,2]
[423485293,1780156234000,-1000.0,0.00012964,2]
[423485295,1780156234000,-6214.67,0.00013003,2]
[423485308,1780156234000,-150.0,0.00013218,2]
[423485299,1780156234000,-167.51,0.00013028,2]
[423485301,1780156234000,-151.55,0.0001307,2]
[423485297,1780156234000,-246.38,0.00013012,2]
[423485305,1780156234000,-151.55,0.00013218,2]
[423485303,1780156234000,-2000.0,0.00013189,2]
[423485312,1780156234000,-151.55,0.00013366,2]
[423485345,1780156234000,-500.0,0.00013698,2]
[423485334,1780156234000,-500.0,0.00013698,2]
[423485344,1780156234000,-500.0,0.00013698,2]
[423485377,1780156234000,-500.0,0.00013698,2]
[423485381,1780156234000,-500.0,0.00013698,2]
[423485378,1780156234000,-500.0,0.00013698,2]
[423485380,1780156234000,-500.0,0.00013698,2]
[423485379,1780156234000,-500.0,0.00013698,2]
[423485383,1780156234000,-500.0,0.00013698,2]
[423485382,1780156234000,-500.0,0.00013698,2]
[423485386,1780156234000,-500.0,0.00013698,2]
[423485384,1780156234000,-500.0,0.00013698,2]
[423485385,1780156234000,-500.0,0.00013698,2]
[423485387,1780156234000,-416.10004967,0.00013698,2]